bitfinex-derivatives/quotes_SOLF0:USTF0_20250624
["timestamp","ask_amount","ask_price","bid_price","bid_amount"]
[1750733121784,37.5588,142.96,142.95,6.991]
[1750733121984,50.82558847,142.96,142.95,6.991]
[1750733122284,48.50678847,142.96,142.95,6.991]
[1750733122583,6.45000186,142.98,142.97,6.9901]
[1750733122788,2.52336233,142.98,142.95,3.52029025]
[1750733122982,2.52316612,142.97,142.95,3.52029025]
[1750733123180,6.45000186,143.01,142.95,3.52029025]
[1750733123181,4.98543397,142.99,142.95,3.52029025]
[1750733123481,2.52294917,142.98,142.93,38.76029025]
[1750733123680,2.52294917,142.97,142.93,38.76029025]
[1750733123884,42.2294,142.99,142.93,38.76029025]
[1750733124087,2.52272245,142.98,142.93,3.52029025]
[1750733124387,2.52272245,142.97,142.95,6.9906]
[1750733124574,2.52272245,142.96,142.95,6.9906]
[1750733124782,42.2291,142.99,142.93,3.52029025]
[1750733124982,2.52282786,142.98,142.96,6.9903]
[1750733125181,2.52269851,142.97,142.96,6.9903]
[1750733127980,42.2291,142.99,142.96,6.9903]
[1750733128189,2.52698071,142.98,142.96,6.9903]
[1750733128391,2.52698071,142.97,142.91,3.52070623]
[1750733128591,2.52698071,142.96,142.91,3.52070623]
[1750733128793,2.52698071,142.95,142.91,3.52070623]
[1750733128992,6.9896,142.98,142.94,6.9911]
[1750733129192,2.52676466,142.97,142.91,3.52070623]
[1750733129393,2.52676466,142.96,142.91,3.52070623]
[1750733129695,2.52676466,142.95,142.91,3.52070623]
[1750733129897,47.58290809,142.99,142.91,3.52070623]
[1750733130090,2.52700463,142.98,142.91,3.52070623]
[1750733130292,2.52700463,142.97,142.91,3.52070623]
[1750733130492,2.52700463,142.96,142.91,3.52070623]
[1750733130690,41.13290623,142.99,142.91,3.52070623]
[1750733130888,2.52739393,142.98,142.95,6.9908]
[1750733131092,2.52739393,142.97,142.95,6.9908]
[1750733131397,48.12230623,142.99,142.95,6.9906]
[1750733131594,2.52797312,142.98,142.95,6.9906]
[1750733131791,2.52797312,142.97,142.95,6.9906]
[1750733131991,2.52797312,142.96,142.95,6.9906]
[1750733132497,2.52797312,142.96,142.94,6.9914]
[1750733132698,2.52797312,142.95,142.94,6.9914]
[1750733133101,2.52797312,142.95,142.93,6.9915]
[1750733133398,6.9906,142.96,142.93,6.9915]
[1750733133592,2.52750249,142.95,142.93,6.9915]
[1750733133792,6.9906,142.96,142.93,6.9915]
[1750733133992,2.52747804,142.95,142.93,6.9915]
[1750733134193,6.9906,142.96,142.93,6.9915]
[1750733134394,2.52804309,142.95,142.93,6.9915]
[1750733134601,6.9906,142.96,142.93,6.9915]
[1750733134800,8.03989058,142.95,142.93,6.9915]
[1750733135002,6.9903,142.97,142.94,6.9914]
[1750733135298,8.04009973,142.96,142.94,6.9914]
[1750733135496,8.04009973,142.95,142.94,6.9914]
[1750733136197,8.04009973,142.95,142.93,6.9918]
[1750733136400,2.52840156,142.94,142.93,6.9918]
[1750733136595,6.9903,142.97,142.93,6.9918]
[1750733136796,8.04310749,142.96,142.93,6.9918]
[1750733137110,8.04310749,142.95,142.92,6.9923]
[1750733137395,8.04310749,142.95,142.85,13.10147097]
[1750733137396,8.04254103,142.94,142.88,3.52045332]
[1750733137595,8.04280758,142.93,142.88,3.52045332]
[1750733137798,6.9917,142.94,142.88,3.52045332]
[1750733138099,35.24,142.95,142.83,35.24]
[1750733138100,3.52341757,142.91,142.83,35.24]
[1750733138300,37.7692917,142.9,142.83,38.76341757]
[1750733138504,35.24,142.9,142.83,38.76341757]
[1750733138701,35.24,142.9,142.83,35.24]
[1750733138896,2.52765483,142.89,142.84,3.52341757]
[1750733139199,2.52765483,142.88,142.81,606.4995]
[1750733139402,2.52765483,142.87,142.81,2.2995]
[1750733139700,35.24,142.86,142.83,6.9966]
[1750733141689,42.2354,142.86,142.83,6.9966]
[1750733142398,35.24,142.86,142.83,6.9966]
[1750733142598,35.24,142.86,142.84,6.9964]
[1750733146106,35.24,142.86,142.85,6.9959]
[1750733147205,35.24,142.86,142.84,6.9962]
[1750733147401,35.24,142.86,142.79,2.2601]
[1750733147601,35.24,142.86,142.8,3.52341757]
[1750733147802,35.24,142.86,142.82,6.9971]
[1750733147997,42.2356,142.86,142.82,6.9971]
[1750733150008,6.996,142.85,142.81,6.9978]
[1750733152409,42.2356,142.86,142.79,5.78702931]
[1750733153710,35.24,142.86,142.79,5.78702931]
[1750733153913,35.24,142.86,142.81,3.52692931]
[1750733154907,35.24,142.86,142.84,6.9963]
[1750733155911,42.2355,142.86,142.83,6.9967]
[1750733156111,38.76692931,142.86,142.79,5.78702931]
[1750733156515,38.76692931,142.86,142.77,213.23582172]
[1750733156808,2.2611,142.85,142.77,213.23582172]
[1750733157008,2.2611,142.85,142.8,6.998]
[1750733157211,2.2611,142.85,142.77,213.23582172]
[1750733157401,2.2611,142.85,142.79,6.9987]
[1750733157402,6.9973,142.83,142.79,6.9987]
[1750733157809,6.9973,142.83,142.77,5.78452931]
[1750733158204,6.9973,142.83,142.79,6.9986]
[1750733158509,35.26,142.82,142.79,6.9986]
[1750733158817,42.2575,142.82,142.79,6.9986]
[1750733159406,6.9979,142.81,142.78,6.9991]
[1750733160014,6.9979,142.81,142.77,6.9997]
[1750733160915,6.9979,142.81,142.78,6.9993]
[1750733162225,2.2611,142.85,142.78,3.52692931]
[1750733162428,2.2611,142.85,142.77,35.26]
[1750733162726,2.2611,142.85,142.79,3.52692931]
[1750733162727,9.257,142.85,142.79,3.52692931]
[1750733163921,6.9965,142.84,142.79,3.52692931]
[1750733164124,2.2611,142.85,142.78,3.52734193]
[1750733164622,2.2611,142.85,142.77,3.52734193]
[1750733164623,6.9972,142.83,142.77,3.52734193]
[1750733164824,35.26,142.82,142.77,3.52734193]
[1750733165729,35.26,142.82,142.8,6.998]
[1750733166927,35.26,142.82,142.79,6.9987]
[1750733167123,35.26,142.82,142.77,3.52734193]
[1750733168522,35.26,142.82,142.79,6.9985]
[1750733168828,35.26,142.82,142.77,3.52734193]
[1750733169024,38.78734193,142.82,142.77,6.9995]
[1750733169326,38.78734193,142.82,142.74,2.3477]
[1750733169516,3.52734193,142.8,142.72,3.52734193]
[1750733170224,6.9992,142.79,142.72,3.52734193]
[1750733170424,35.26,142.78,142.72,3.52734193]
[1750733170928,35.26,142.78,142.75,3.52971944]
[1750733171124,35.26,142.81,142.78,6.999]
[1750733172330,35.26,142.81,142.8,6.9984]
[1750733172527,35.26,142.84,142.75,4.5589]
[1750733172721,6.997,142.83,142.77,3.52971944]
[1750733173130,42.2564,142.84,142.8,6.9984]
[1750733173432,42.2564,142.84,142.77,3.52971944]
[1750733173433,35.26,142.84,142.77,3.52971944]
[1750733174432,42.2564,142.84,142.8,6.998]
[1750733175629,35.26,142.84,142.81,6.9978]
[1750733176430,35.26,142.84,142.78,3.52971944]
[1750733176832,35.26,142.84,142.78,38.78971944]
[1750733178533,35.26,142.84,142.78,35.26]
[1750733178737,42.2566,142.84,142.78,35.26]
[1750733179131,35.26,142.84,142.81,6.9976]
[1750733179837,35.26,142.84,142.79,3.52971944]
[1750733183634,42.2564,142.84,142.81,6.9976]
[1750733184028,35.26,142.84,142.81,6.9976]
[1750733184538,7.56824674,142.83,142.76,2.2951]
[1750733184737,35.26,142.84,142.77,3.52971944]
[1750733184938,2.51380299,142.83,142.79,6.9985]
[1750733185139,2.51402189,142.82,142.77,3.52971944]
[1750733185335,5.05482179,142.83,142.77,3.52971944]
[1750733185634,5.05482179,142.83,142.75,39.8189]
[1750733185635,2.51402218,142.82,142.76,7.0]
[1750733185840,6.9987,142.8,142.76,7.0]
[1750733186034,42.2587,142.8,142.76,7.0]
[1750733186635,42.2587,142.8,142.77,6.9998]
[1750733189946,35.26,142.8,142.76,3.52843054]
[1750733190135,35.26,142.8,142.74,3.52843054]
[1750733191547,3.52843054,142.77,142.68,12.21129423]
[1750733191742,3.52843054,142.75,142.66,14.48249423]
[1750733191942,2.3786,142.74,142.66,14.48249423]
[1750733192245,7.0026,142.72,142.67,7.0044]
[1750733192440,35.38,142.71,142.67,7.0044]
[1750733193542,35.38,142.71,142.68,7.0042]
[1750733193744,42.3828,142.71,142.66,2.2712]
[1750733194132,42.3828,142.71,142.67,7.0047]
[1750733194133,35.38,142.71,142.67,7.0047]
[1750733194541,35.38,142.71,142.68,7.0042]
[1750733195038,35.38,142.71,142.66,2.2712]
[1750733195233,35.38,142.71,142.7,7.0033]
[1750733205450,35.38,142.72,142.7,7.0033]
[1750733205644,7.0014,142.74,142.7,7.0033]
[1750733205840,35.38,142.73,142.7,7.0033]
[1750733206448,35.38,142.73,142.71,7.0024]
[1750733207945,10.52933054,142.75,142.72,7.0023]
[1750733208150,35.38,142.74,142.68,3.52843054]
[1750733209651,35.38,142.74,142.73,7.0014]
[1750733213145,35.38,142.74,142.66,37.6512]
[1750733213146,604.7,142.78,142.66,46.33406369]
[1750733213352,35.38,142.77,142.72,3.52843054]
[1750733213646,42.3802,142.77,142.73,7.0014]
[1750733214550,10.52873054,142.76,142.72,7.0021]
[1750733214747,10.52873054,142.76,142.67,38.90843054]
[1750733214748,3.52843054,142.76,142.67,38.90843054]
[1750733215449,3.52843054,142.74,142.67,38.90843054]
[1750733215650,35.38,142.73,142.65,5.80243054]
[1750733215862,3.52843054,142.72,142.65,5.80243054]
[1750733216355,7.003,142.71,142.65,5.80243054]
[1750733217455,40.1347,142.73,142.65,5.80243054]
[1750733217756,37.7237,142.73,142.67,3.52843054]
[1750733218656,37.7237,142.73,142.7,7.0029]
[1750733221960,48.25403054,142.73,142.65,5.80243054]
[1750733223162,48.25403054,142.73,142.69,7.0034]
[1750733223350,7.0024,142.72,142.65,5.80243054]
[1750733223750,48.25413054,142.73,142.69,7.0034]
[1750733223952,41.25213054,142.73,142.69,7.0034]
[1750733224160,41.25213054,142.73,142.65,5.80243054]
[1750733224358,7.0026,142.72,142.68,7.004]
[1750733224560,7.0026,142.72,142.65,5.80243054]
[1750733224755,7.0026,142.72,142.68,7.0038]
[1750733225358,7.0026,142.72,142.65,5.80243054]
[1750733225864,37.7237,142.73,142.65,5.80243054]
[1750733226058,35.38,142.73,142.67,3.52843054]
[1750733226552,35.38,142.73,142.72,7.0023]
[1750733227155,35.56,142.76,142.69,3.52843054]
[1750733227465,35.56,142.76,142.74,7.0013]
[1750733230359,35.56,142.76,142.75,7.0008]
[1750733235064,35.56,142.76,142.74,7.0011]
[1750733235671,35.56,142.76,142.73,7.0016]
[1750733237778,7.0014,142.74,142.69,3.5304928]
[1750733238878,7.0018,142.73,142.7,7.0028]
[1750733240374,7.0018,142.73,142.69,10.5339928]
[1750733240879,7.0018,142.73,142.69,3.5304928]
[1750733241678,7.0018,142.73,142.7,7.0031]
[1750733242276,35.56,142.72,142.67,8.68286369]
[1750733242581,3.53462262,142.71,142.63,219.48948647]
[1750733242770,2.2053,142.71,142.62,8.68286369]
[1750733242968,6.03518869,142.7,142.61,12.21748631]
[1750733243174,3.53462262,142.7,142.61,12.21748631]
[1750733243373,3.53462262,142.7,142.63,7.0065]
[1750733243974,3.53462262,142.7,142.61,12.21748631]
[1750733243975,7.0046,142.68,142.64,7.0061]
[1750733244174,42.5646,142.68,142.64,7.0061]
[1750733244777,42.5646,142.68,142.63,7.0065]
[1750733244978,7.0048,142.67,142.63,7.0065]
[1750733254486,7.0053,142.66,142.62,7.007]
[1750733256788,7.0049,142.67,142.63,7.0065]
[1750733257187,39.09462262,142.68,142.63,7.0065]
[1750733257987,7.006,142.65,142.59,8.21422262]
[1750733258891,7.006,142.65,142.61,7.0073]
[1750733259191,7.006,142.65,142.59,8.21422262]
[1750733259491,39.09462262,142.68,142.59,8.21422262]
[1750733260180,39.09462262,142.68,142.62,7.0068]
[1750733260388,39.09462262,142.68,142.59,43.95422262]
[1750733260897,7.006,142.65,142.61,7.0073]
[1750733261391,7.006,142.65,142.62,7.0071]
[1750733262092,7.0054,142.66,142.62,7.0071]
[1750733264094,7.0054,142.66,142.63,7.0067]
[1750733264895,7.0054,142.66,142.62,7.007]
[1750733265087,10.54002262,142.66,142.62,7.007]
[1750733265793,7.0054,142.66,142.62,7.007]
[1750733265993,38.22,142.77,142.64,7.06924524]
[1750733266186,42.7713,142.77,142.65,54.00286369]
[1750733266382,42.7713,142.77,142.7,3.53462262]
[1750733266988,4.5513,142.77,142.74,7.0012]
[1750733267185,38.22,142.76,142.7,3.53462262]
[1750733267394,38.22,142.76,142.73,7.0013]
[1750733267594,38.22,142.76,142.72,3.53462262]
[1750733267990,38.22,142.76,142.66,8.68286369]
[1750733268190,38.22,142.76,142.69,3.53462262]
[1750733269196,7.001,142.75,142.69,3.53462262]
[1750733270692,4.5513,142.77,142.69,3.53462262]
[1750733270896,38.2,142.74,142.69,3.53462262]
[1750733271498,38.2,142.74,142.7,7.0031]
[1750733273397,38.2,142.74,142.71,7.0027]
[1750733274198,38.2,142.74,142.72,7.0022]
[1750733275294,38.2,142.74,142.73,7.0018]
[1750733288900,38.2,142.75,142.73,7.0018]
[1750733289705,38.2,142.75,142.69,3.53148602]
[1750733290203,38.2,142.75,142.74,7.0013]
[1750733294414,4.5513,142.77,142.75,7.0007]
[1750733294614,38.2,142.76,142.75,7.0007]
[1750733295214,4.5513,142.77,142.75,7.0007]
[1750733295414,38.2,142.76,142.75,7.0007]
[1750733296016,38.54,142.77,142.73,3.53148602]
[1750733296913,38.54,142.77,142.76,7.0003]
[1750733300419,38.54,142.77,142.71,6.50923577]
[1750733300613,38.54,142.77,142.71,3.53148602]
[1750733300817,183.37148602,142.77,142.69,10.04072179]
[1750733301012,185.61718602,142.77,142.69,3.53148602]
[1750733301622,185.61718602,142.77,142.72,7.0019]
[1750733301623,7.0004,142.76,142.72,7.0019]
[1750733303225,189.0857,142.77,142.69,3.53148602]
[1750733303618,189.0857,142.77,142.69,10.04072179]
[1750733304620,189.0857,142.77,142.69,3.53148602]
[1750733304813,189.0857,142.77,142.73,7.0015]
[1750733305520,5.41562704,142.76,142.73,7.0015]
[1750733305722,189.0857,142.77,142.73,7.0015]
[1750733305914,5.41562704,142.76,142.73,7.0015]
[1750733306115,189.0857,142.77,142.73,7.0015]
[1750733306324,5.41556637,142.76,142.73,7.0015]
[1750733306526,189.0857,142.77,142.73,7.0015]
[1750733306721,5.42041827,142.76,142.73,7.0015]
[1750733306924,189.0857,142.77,142.73,7.0015]
[1750733307223,5.4177631,142.76,142.73,7.0015]
[1750733307427,189.0857,142.77,142.73,7.0015]
[1750733307723,5.41805639,142.76,142.73,7.0015]
[1750733307922,189.0857,142.77,142.73,7.0015]
[1750733307923,5.42466423,142.75,142.73,7.0015]
[1750733308125,2.53994396,142.76,142.73,7.0015]
[1750733308323,5.42467095,142.75,142.73,7.0015]
[1750733308522,189.0857,142.77,142.73,7.0015]
[1750733308721,7.9655069,142.76,142.73,7.0015]
[1750733309027,5.42527781,142.75,142.73,7.0015]
[1750733309227,189.0857,142.77,142.73,7.0015]
[1750733309414,7.9655069,142.76,142.73,7.0015]
[1750733309621,5.42527781,142.75,142.73,7.0015]
[1750733309926,189.0857,142.77,142.73,7.0015]
[1750733310227,7.96496688,142.76,142.73,7.0015]
[1750733310422,7.97106223,142.75,142.73,7.0015]
[1750733310628,5.42491067,142.74,142.73,7.0015]
[1750733311023,43.96491067,142.74,142.73,7.0015]
[1750733311829,38.54,142.74,142.73,7.0015]
[1750733312130,43.97793114,142.74,142.73,7.0015]
[1750733313430,43.97793114,142.74,142.71,6.50923577]
[1750733313631,7.98402362,142.73,142.69,6.50923577]
[1750733313826,5.43793114,142.72,142.69,6.50923577]
[1750733314131,9.4459,142.73,142.69,13.51273577]
[1750733314333,5.43667306,142.72,142.69,6.50923577]
[1750733314532,2.4438,142.73,142.69,6.50923577]
[1750733314832,5.43788714,142.72,142.69,7.0036]
[1750733315132,9.4457,142.73,142.68,6.50923577]
[1750733315429,12.44069476,142.72,142.69,7.0036]
[1750733315627,7.0023,142.72,142.69,7.0036]
[1750733317625,7.0032,142.71,142.68,6.50923577]
[1750733317831,46.50701733,142.7,142.65,6.50923577]
[1750733318029,8.9575349,142.69,142.65,6.50923577]
[1750733318338,7.0045,142.68,142.65,6.50923577]
[1750733318533,7.0045,142.68,142.64,13.51523577]
[1750733318835,5.91058602,142.69,142.64,13.51523577]
[1750733319037,5.42531816,142.68,142.64,13.51523577]
[1750733319231,5.91058602,142.69,142.64,7.006]
[1750733319433,5.42500983,142.68,142.64,7.006]
[1750733319639,11.49547792,142.67,142.62,6.50923577]
[1750733319837,38.54,142.66,142.61,6.50923577]
[1750733320232,38.54,142.66,142.63,7.0064]
[1750733320430,38.54,142.66,142.61,6.50923577]
[1750733320932,38.54,142.66,142.63,7.0063]
[1750733322528,45.5452,142.66,142.62,7.0071]
[1750733322729,45.5452,142.66,142.59,10.04072179]
[1750733322730,38.54,142.66,142.59,10.04072179]
[1750733322932,40.7947,142.66,142.59,10.04072179]
[1750733323136,7.0062,142.65,142.61,7.0075]
[1750733326639,7.0062,142.65,142.62,7.0072]
[1750733328139,7.0063,142.64,142.61,7.0075]
[1750733328339,7.0063,142.64,142.57,53.32092179]
[1750733328538,7.0063,142.64,142.57,5.94228602]
[1750733328844,7.0063,142.64,142.6,7.0079]
[1750733329247,3.53148602,142.63,142.55,6.50923577]
[1750733329441,3.53953421,142.6,142.54,2.4493]
[1750733329754,44.7089,142.59,142.55,7.0103]
[1750733330545,44.7089,142.59,142.56,7.0101]
[1750733331646,37.7,142.59,142.57,7.0095]
[1750733332748,37.7,142.59,142.56,7.01]
[1750733333350,37.7,142.59,142.54,7.0111]
[1750733333645,37.7,142.59,142.52,3.53953421]
[1750733333852,7.0092,142.58,142.52,3.53953421]
[1750733334047,37.7,142.59,142.52,3.53953421]
[1750733334447,44.7088,142.59,142.55,7.0103]
[1750733335652,44.7088,142.59,142.56,7.01]
[1750733338352,37.7,142.59,142.57,7.0096]
[1750733339555,37.7,142.59,142.56,7.01]
[1750733340058,44.7088,142.59,142.55,7.0104]
[1750733340553,37.7,142.59,142.52,3.53953421]
[1750733340752,37.7,142.59,142.57,7.0093]
[1750733341053,5.98033421,142.61,142.54,3.53953421]
[1750733341260,37.72,142.6,142.54,3.53953421]
[1750733341453,37.72,142.6,142.59,7.0087]
[1750733342561,3.53953421,142.63,142.56,3.53953421]
[1750733342760,37.72,142.63,142.56,8.00923421]
[1750733342960,37.72,142.63,142.58,3.53953421]
[1750733343162,37.72,142.63,142.62,7.0072]
[1750733346966,3.53953421,142.67,142.64,7.006]
[1750733347260,3.53953421,142.65,142.56,2.2183]
[1750733347466,10.54653421,142.63,142.58,7.0091]
[1750733347658,37.7,142.62,142.56,2.2183]
[1750733348966,7.008,142.61,142.57,7.0093]
[1750733349565,44.7074,142.62,142.58,7.0092]
[1750733350471,7.0078,142.61,142.58,7.0092]
[1750733350663,37.7,142.62,142.58,7.0092]
[1750733350969,37.7,142.62,142.55,2.3073]
[1750733351167,41.23953421,142.62,142.55,2.3073]
[1750733351365,41.23953421,142.62,142.57,7.0093]
[1750733351762,3.53953421,142.6,142.52,5.81643421]
[1750733352171,3.53953421,142.6,142.52,2.2769]
[1750733352172,7.0094,142.58,142.52,2.2769]
[1750733352375,44.7094,142.58,142.54,7.0108]
[1750733352873,44.7094,142.58,142.52,2.2769]
[1750733354569,44.7094,142.58,142.55,7.0106]
[1750733354767,37.7,142.58,142.55,7.0106]
[1750733355273,37.7,142.58,142.56,7.0101]
[1750733355573,44.7092,142.58,142.52,2.2769]
[1750733355774,44.7092,142.58,142.54,7.0107]
[1750733356978,37.7,142.58,142.55,7.0105]
[1750733357277,37.7,142.58,142.52,2.2769]
[1750733357775,37.7,142.58,142.56,7.0101]
[1750733358784,37.7,142.58,142.57,7.0097]
[1750733358975,37.36,142.61,142.53,3.53953421]
[1750733359281,5.35169184,142.6,142.55,3.53953421]
[1750733359467,37.36,142.61,142.55,3.53953421]
[1750733360476,37.36,142.61,142.6,7.0082]
[1750733364290,37.36,142.61,142.59,7.0086]
[1750733365482,37.36,142.61,142.6,7.0082]
[1750733366284,4.4881,142.64,142.6,7.0082]
[1750733366583,37.36,142.64,142.57,10.01359037]
[1750733366787,37.36,142.64,142.59,3.53953421]
[1750733367179,37.36,142.64,142.62,7.0069]
[1750733367784,37.36,142.64,142.63,7.0067]
[1750733367986,37.36,142.64,142.59,10.01359037]
[1750733368281,5.36653613,142.66,142.59,10.01359037]
[1750733368485,44.3649,142.67,142.62,7.0068]
[1750733368687,5.36648494,142.66,142.62,7.0068]
[1750733368890,7.0054,142.66,142.62,7.0068]
[1750733369484,7.0064,142.64,142.58,49.74429037]
[1750733369681,5.36699755,142.65,142.58,49.74429037]
[1750733369682,3.53953421,142.65,142.58,49.74429037]
[1750733369878,7.0077,142.61,142.56,8.79015616]
[1750733370078,3.53953421,142.63,142.55,43.83405616]
[1750733370280,5.36626587,142.62,142.55,6.47405616]
[1750733370487,7.0092,142.58,142.55,6.47405616]
[1750733370687,37.36,142.6,142.54,10.01359037]
[1750733370887,37.36,142.6,142.55,7.0103]
[1750733371091,7.009,142.59,142.55,7.0103]
[1750733371888,7.0092,142.58,142.55,7.0103]
[1750733374190,7.0092,142.58,142.54,7.011]
[1750733374887,7.0103,142.56,142.53,13.48555616]
[1750733375288,7.0103,142.56,142.52,49.64599037]
[1750733375486,7.0103,142.56,142.53,6.47405616]
[1750733376592,7.0103,142.56,142.52,49.64599037]
[1750733376794,7.0103,142.56,142.53,7.0116]
[1750733376996,7.0103,142.56,142.53,13.48565616]
[1750733379291,7.0103,142.56,142.53,7.0116]
[1750733379593,7.0099,142.57,142.53,7.0116]
[1750733379794,7.0099,142.57,142.54,7.0111]
[1750733383998,5.35990716,142.58,142.52,5.81193421]
[1750733384203,3.53953421,142.59,142.52,12.28599037]
[1750733384599,3.53953421,142.59,142.56,7.0098]
[1750733385100,3.53953421,142.59,142.57,7.0096]
[1750733385998,10.54833421,142.59,142.56,7.01]
[1750733387194,13.05054247,142.59,142.56,7.01]
[1750733388200,3.53953421,142.59,142.56,7.01]
[1750733389799,10.54833421,142.59,142.56,7.01]
[1750733398103,3.53953421,142.59,142.57,7.0096]
[1750733398301,37.36,142.6,142.53,6.47405616]
[1750733398501,37.36,142.6,142.54,3.53953421]
[1750733398701,37.36,142.6,142.57,7.0093]
[1750733400303,37.36,142.6,142.58,7.0092]
[1750733402413,37.36,142.6,142.59,7.0087]
[1750733402714,45.24079414,142.6,142.59,7.0087]
[1750733402915,42.73190348,142.6,142.59,7.0087]
[1750733403116,37.36,142.6,142.59,7.0087]
[1750733404907,37.36,142.6,142.58,7.009]
[1750733405115,620.87203421,142.64,142.56,3.53953421]
[1750733405305,44.94823706,142.63,142.56,12.31149037]
[1750733405509,5.37556264,142.62,142.56,12.31149037]
[1750733405706,37.06,142.63,142.56,8.77195616]
[1750733405910,7.88682051,142.62,142.58,7.0088]
[1750733406208,5.37466244,142.61,142.58,7.0088]
[1750733406410,7.0075,142.62,142.58,7.0088]
[1750733406613,5.37471695,142.61,142.58,7.0088]
[1750733406912,7.0075,142.62,142.58,7.0088]
[1750733407109,5.37436656,142.61,142.58,7.0088]
[1750733407310,7.0075,142.62,142.58,7.0088]
[1750733407510,5.37968854,142.61,142.58,7.0088]
[1750733407815,7.0075,142.62,142.58,7.0088]
[1750733408015,5.37999352,142.61,142.58,7.0088]
[1750733408209,7.0075,142.62,142.58,7.0088]
[1750733408512,5.37989457,142.61,142.58,7.0088]
[1750733408712,7.0079,142.61,142.58,7.0088]
[1750733408910,3.53953421,142.62,142.57,7.0095]
[1750733409115,37.06,142.6,142.57,7.0095]
[1750733409309,5.37835011,142.59,142.54,6.47405616]
[1750733409514,40.59953421,142.6,142.53,47.07359037]
[1750733409710,5.37803628,142.59,142.53,10.01359037]
[1750733409909,7.0089,142.59,142.53,10.01359037]
[1750733410316,7.0089,142.59,142.55,7.0103]
[1750733410708,7.0093,142.58,142.55,7.0103]
[1750733411316,7.009,142.59,142.55,7.0103]
[1750733411717,5.37971207,142.58,142.55,7.0103]
[1750733412019,7.0092,142.58,142.55,7.0103]
[1750733412411,7.0092,142.58,142.51,8.68286369]
[1750733412412,3.540552,142.58,142.53,6.47405616]
[1750733412608,3.540552,142.56,142.51,6.47405616]
[1750733412808,37.06,142.55,142.51,6.47405616]
[1750733413008,44.071,142.55,142.51,13.48645616]
[1750733413416,44.071,142.55,142.52,7.0121]
[1750733413813,7.0112,142.54,142.51,6.47405616]
[1750733414020,37.06,142.55,142.51,7.0122]
[1750733414313,37.06,142.55,142.51,6.47405616]
[1750733414518,37.06,142.55,142.5,6.47405616]
[1750733415619,44.071,142.55,142.52,7.012]
[1750733416017,44.071,142.55,142.5,6.47405616]
[1750733416618,8.91647227,142.54,142.5,6.47405616]
[1750733416812,7.88890791,142.53,142.48,6.47405616]
[1750733417017,5.37556859,142.52,142.48,6.47405616]
[1750733417315,37.06,142.51,142.48,6.47405616]
[1750733417518,37.06,142.51,142.48,7.014]
[1750733417822,37.06,142.51,142.47,6.47405616]
[1750733418121,37.06,142.51,142.5,7.0131]
[1750733420824,42.01280777,142.54,142.52,7.0121]
[1750733421024,36.66,142.54,142.52,7.0121]
[1750733423223,36.66,142.54,142.53,7.0116]
[1750733430232,36.66,142.54,142.52,7.0119]
[1750733449037,38.92658408,142.54,142.5,7.0127]
[1750733449241,38.92658408,142.54,142.48,2.26658408]
[1750733450337,43.6714,142.54,142.5,7.0128]
[1750733450733,5.37120784,142.53,142.5,7.0128]
[1750733450933,7.0116,142.53,142.5,7.0128]
[1750733451533,7.0122,142.52,142.49,7.0134]
[1750733451736,7.0122,142.52,142.47,6.47405616]
[1750733452539,7.0122,142.52,142.48,13.48785616]
[1750733453343,36.66,142.54,142.48,6.47405616]
[1750733453539,7.92598245,142.53,142.48,6.47405616]
[1750733453739,7.92364039,142.52,142.48,6.47405616]
[1750733453940,36.66,142.54,142.47,6.47405616]
[1750733453941,11.46593811,142.51,142.47,6.47405616]
[1750733454250,44.24347457,142.5,142.46,6.47405616]
[1750733454445,36.32,142.5,142.46,6.47405616]
[1750733454946,5.40242236,142.49,142.46,6.47405616]
[1750733455137,43.3333,142.5,142.46,13.48875616]
[1750733455341,5.40314809,142.49,142.46,13.48875616]